bitfinex/quotes_SOLUSD_20250506
["timestamp","ask_amount","ask_price","bid_price","bid_amount"]
[1746545737247,21.09241892,144.25,144.22,20.24312382]
[1746545738133,14.16,144.25,144.22,20.24312382]
[1746545738336,20.24312382,144.29,144.24,20.24312382]
[1746545738653,14.16,144.28,144.24,20.24312382]
[1746545738851,34.40312382,144.28,144.24,20.24312382]
[1746545739331,14.2,144.3,144.25,20.24312382]
[1746545739530,20.24312382,144.26,144.19,6.3942]
[1746545739722,20.24312382,144.21,144.17,41.88]
[1746545739923,34.46312382,144.22,144.16,7.8346]
[1746545740147,14.22,144.22,144.16,28.07772382]
[1746545740346,20.24312382,144.21,144.17,20.24312382]
[1746545740553,14.22,144.22,144.18,20.24312382]
[1746545740957,20.24312382,144.21,144.16,7.8346]
[1746545741147,6.93481276,144.2,144.17,20.24312382]
[1746545741830,6.93481276,144.2,144.17,32.40619013]
[1746545742033,6.93421529,144.22,144.19,32.40619013]
[1746545743057,6.93421529,144.22,144.18,32.40619013]
[1746545743354,21.15355045,144.23,144.2,32.40619013]
[1746545743538,21.15355045,144.23,144.19,32.40619013]
[1746545743960,6.93355045,144.23,144.19,32.40619013]
[1746545744960,39.33974058,144.23,144.19,32.40619013]
[1746545745961,39.33974058,144.23,144.16,28.97114585]
[1746545746162,39.33974058,144.23,144.19,32.40619013]
[1746545747843,32.40619013,144.21,144.17,32.40619013]
[1746545748337,32.40619013,144.2,144.16,20.4408]
[1746545748542,32.40619013,144.19,144.16,14.2]
[1746545748947,46.60619013,144.19,144.14,32.40619013]
[1746545749164,46.60619013,144.19,144.15,32.40619013]
[1746545749667,6.93577472,144.18,144.15,32.40619013]
[1746545750040,39.34196485,144.18,144.13,1.5005]
[1746545750265,39.34196485,144.18,144.14,32.40619013]
[1746545750460,32.40619013,144.17,144.13,33.90669013]
[1746545750654,32.40619013,144.17,144.13,1.5005]
[1746545750852,39.34196485,144.18,144.14,32.40619013]
[1746545751261,6.93577472,144.18,144.15,32.40619013]
[1746545751459,21.15354616,144.23,144.17,32.40619013]
[1746545751673,14.22,144.23,144.2,32.40619013]
[1746545752143,53.55966811,144.23,144.18,39.04959013]
[1746545752338,39.33966811,144.23,144.18,45.98533103]
[1746545752666,53.55966811,144.23,144.18,39.04959013]
[1746545753056,53.55966811,144.23,144.18,45.98531797]
[1746545754564,53.55966811,144.23,144.19,39.34145065]
[1746545754864,46.62619013,144.23,144.19,39.34145065]
[1746545755065,14.22,144.23,144.19,39.34145065]
[1746545755268,6.93261233,144.25,144.19,6.93526052]
[1746545755455,14.18,144.24,144.2,32.40619013]
[1746545755972,46.58619013,144.24,144.19,8.53486052]
[1746545756270,21.13105129,144.28,144.23,32.40619013]
[1746545756569,39.33765492,144.27,144.23,32.40619013]
[1746545756869,32.40619013,144.26,144.2,6.93481276]
[1746545757074,21.15146479,144.27,144.21,32.40619013]
[1746545757368,32.40619013,144.26,144.22,32.40619013]
[1746545757868,39.33906328,144.25,144.21,32.40619013]
[1746545760443,32.40619013,144.24,144.19,34.00579013]
[1746545760644,32.40619013,144.23,144.19,32.40619013]
[1746545761568,32.40619013,144.24,144.19,32.40619013]
[1746545761779,6.93211416,144.26,144.21,32.40619013]
[1746545761951,6.93211416,144.26,144.19,6.93519631]
[1746545761952,1.5915,144.34,144.25,32.40619013]
[1746545762153,32.40619013,144.31,144.27,32.40619013]
[1746545762350,39.33586149,144.31,144.27,32.40619013]
[1746545762967,39.33586149,144.31,144.24,12.99292037]
[1746545763163,6.92967136,144.31,144.27,32.40619013]
[1746545763368,39.33586149,144.31,144.26,32.40619013]
[1746545765185,32.40619013,144.3,144.26,32.40619013]
[1746545765852,32.40619013,144.29,144.25,32.40619013]
[1746545766052,6.93096756,144.28,144.24,6.0605]
[1746545766357,32.40619013,144.27,144.23,32.40619013]
[1746545767048,32.40619013,144.26,144.22,46.62619013]
[1746545767480,32.40619013,144.25,144.21,32.40619013]
[1746545767677,32.40619013,144.25,144.2,6.1568]
[1746545767863,32.40619013,144.23,144.16,14.2]
[1746545768064,6.93433187,144.21,144.18,32.40619013]
[1746545769159,39.340522,144.21,144.16,14.2]
[1746545769354,32.40619013,144.2,144.16,46.60619013]
[1746545769669,6.93433187,144.21,144.17,32.40619013]
[1746545769670,39.340522,144.21,144.17,32.40619013]
[1746545770980,39.340522,144.21,144.13,41.88]
[1746545771163,32.40619013,144.2,144.14,6.93769945]
[1746545771355,32.40619013,144.2,144.16,32.40619013]
[1746545771556,32.40619013,144.18,144.12,14.2]
[1746545771756,32.40619013,144.16,144.12,46.60619013]
[1746545771959,32.40619013,144.16,144.12,14.2]
[1746545772173,21.13636209,144.17,144.14,32.40619013]
[1746545772566,14.2,144.17,144.14,32.40619013]
[1746545772768,14.2,144.17,144.15,32.40619013]
[1746545773778,14.2,144.17,144.13,6.93803521]
[1746545773971,14.2,144.17,144.15,32.40619013]
[1746545774382,21.1154514,144.19,144.15,32.40619013]
[1746545774563,21.1154514,144.19,144.15,39.34340324]
[1746545774764,14.18,144.19,144.17,32.40619013]
[1746545775961,14.18,144.19,144.16,32.40619013]
[1746545776367,21.11532258,144.19,144.16,32.40619013]
[1746545776586,53.52151271,144.19,144.14,6.93769945]
[1746545776789,53.52151271,144.19,144.15,32.40619013]
[1746545777161,32.40619013,144.18,144.14,32.40619013]
[1746545777360,53.52151271,144.19,144.15,32.40619013]
[1746545777669,32.40619013,144.18,144.14,32.40619013]
[1746545778064,39.34203407,144.18,144.14,32.40619013]
[1746545779498,39.34203407,144.18,144.14,39.34387369]
[1746545780089,39.34203407,144.18,144.13,6.9381808]
[1746545780387,53.52168985,144.19,144.14,32.40619013]
[1746545780881,32.40619013,144.18,144.12,21.13846511]
[1746545781085,32.40619013,144.18,144.14,32.40619013]
[1746545782065,53.52168985,144.19,144.14,39.34388698]
[1746545782486,32.40619013,144.18,144.14,32.40619013]
[1746545782702,26.0,144.23,144.17,32.40619013]
[1746545782887,6.1569,144.3,144.22,32.40619013]
[1746545782888,6.93048721,144.29,144.22,32.40619013]
[1746545783186,6.93048721,144.29,144.23,32.40619013]
[1746545783187,14.24,144.28,144.23,32.40619013]
[1746545783484,32.40619013,144.27,144.23,32.40619013]
[1746545783793,32.40619013,144.25,144.21,32.40619013]
[1746545783993,39.34023235,144.22,144.17,6.93619263]
[1746545784292,14.24,144.23,144.19,32.40619013]
[1746545784474,14.24,144.23,144.2,32.40619013]
[1746545785074,32.40619013,144.24,144.2,32.40619013]
[1746545785397,53.59879729,144.25,144.17,24.27683215]
[1746545785581,32.40619013,144.24,144.2,32.40619013]
[1746545785806,32.40619013,144.24,144.17,24.27683215]
[1746545785990,32.40619013,144.24,144.2,32.40619013]
[1746545786596,21.19260716,144.25,144.2,32.40619013]
[1746545786891,32.40619013,144.24,144.2,32.40619013]
[1746545787571,32.40619013,144.23,144.19,32.40619013]
[1746545788486,32.40619013,144.22,144.18,32.40619013]
[1746545788671,32.40619013,144.22,144.17,32.40619013]
[1746545789190,6.93383597,144.23,144.18,32.40619013]
[1746545789392,32.40619013,144.22,144.18,32.40619013]
[1746545789688,31.59106876,144.25,144.19,32.40619013]
[1746545789689,6.93300095,144.24,144.19,32.40619013]
[1746545789885,6.93300095,144.24,144.16,14.95945546]
[1746545789886,6.93211925,144.26,144.22,32.40619013]
[1746545790188,53.63830938,144.26,144.22,32.40619013]
[1746545790390,21.23211925,144.26,144.22,32.40619013]
[1746545790590,21.23211925,144.26,144.21,32.40619013]
[1746545790591,53.63830938,144.26,144.21,32.40619013]
[1746545790975,32.40619013,144.25,144.21,32.40619013]
[1746545791187,32.40619013,144.24,144.19,39.34129303]
[1746545791399,32.40619013,144.23,144.19,32.40619013]
[1746545793190,39.33964338,144.23,144.19,32.40619013]
[1746545794390,32.40619013,144.21,144.14,24.28179385]
[1746545794685,32.40619013,144.19,144.14,6.93769945]
[1746545794892,32.40619013,144.19,144.15,32.40619013]
[1746545795098,39.34155529,144.19,144.15,32.40619013]
[1746545795800,32.40619013,144.18,144.14,32.40619013]
[1746545796203,32.40619013,144.17,144.13,46.68619013]
[1746545796510,32.40619013,144.17,144.13,32.40619013]
[1746545797089,39.34199617,144.18,144.14,32.40619013]
[1746545797589,40.26,144.21,144.16,32.40619013]
[1746545797783,32.40619013,144.2,144.16,32.40619013]
[1746545799110,39.3411394,144.2,144.16,32.40619013]
[1746545799317,32.40619013,144.19,144.15,39.34312429]
[1746545799496,32.40619013,144.19,144.15,6.93693416]
[1746545799697,32.40619013,144.19,144.15,39.34312429]
[1746545801001,32.40619013,144.19,144.15,6.93693416]
[1746545801205,32.40619013,144.19,144.15,39.34312429]
[1746545801409,39.34148885,144.19,144.14,39.34369973]
[1746545801620,32.40619013,144.18,144.14,39.34369973]
[1746545802212,40.26,144.21,144.14,6.9375096]
[1746545802410,84.30619013,144.2,144.16,32.40619013]
[1746545803010,91.24110988,144.2,144.16,32.40619013]
[1746545803199,91.24110988,144.2,144.14,32.40619013]
[1746545803200,32.40619013,144.19,144.14,32.40619013]
[1746545803402,32.40619013,144.18,144.14,32.40619013]
[1746545803613,32.40619013,144.18,144.12,24.99156163]
[1746545803907,32.40619013,144.18,144.13,39.34437093]
[1746545804287,51.9,144.19,144.15,32.40619013]
[1746545804486,51.9,144.19,144.16,32.40619013]
[1746545805015,51.9,144.19,144.17,32.40619013]
[1746545805190,51.9,144.19,144.16,39.34246827]
[1746545807994,51.9,144.23,144.21,39.34050506]
[1746545808406,51.9,144.23,144.22,32.40619013]
[1746545808710,51.9,144.23,144.21,39.34050506]
[1746545809004,51.9,144.23,144.19,1.5525]
[1746545809208,51.9,144.23,144.2,32.40619013]
[1746545810411,98.56619013,144.22,144.17,6.93607811]
[1746545810616,98.56619013,144.22,144.17,39.34226824]
[1746545810783,32.40619013,144.19,144.15,7.7814]
[1746545811190,32.40619013,144.19,144.15,40.18759013]
[1746545811505,51.9,144.21,144.14,32.40619013]
[1746545811709,51.9,144.21,144.11,39.22262649]
[1746545811710,51.9,144.21,144.15,32.40619013]
[1746545811901,32.40619013,144.19,144.15,39.34329572]
[1746545812310,51.9,144.21,144.17,32.40619013]
[1746545812496,66.16,144.21,144.15,6.93710559]
[1746545812696,98.56619013,144.21,144.17,32.40619013]
[1746545812897,32.40619013,144.2,144.16,32.40619013]
[1746545813494,32.40619013,144.2,144.16,30.90619013]
[1746545813907,84.30619013,144.2,144.16,37.84287642]
[1746545814216,84.30619013,144.2,144.16,6.93668629]
[1746545814419,51.9,144.2,144.16,39.34287642]
[1746545814610,84.30619013,144.2,144.16,39.34287642]
[1746545814912,32.40619013,144.19,144.15,39.34324734]
[1746545815414,32.40619013,144.19,144.14,32.40619013]
[1746545815914,58.83483302,144.2,144.15,32.40619013]
[1746545816115,51.9,144.2,144.17,32.40619013]
[1746545816694,51.9,144.2,144.16,32.40619013]
[1746545817014,51.9,144.2,144.17,32.40619013]
[1746545817592,84.30619013,144.2,144.14,24.28162644]
[1746545818004,84.30619013,144.2,144.16,32.40619013]
[1746545818204,32.40619013,144.18,144.14,32.40619013]
[1746545818397,32.40619013,144.18,144.13,32.40619013]
[1746545818804,32.40619013,144.18,144.14,32.40619013]
[1746545819321,32.40619013,144.18,144.14,39.34387618]
[1746545819897,32.40619013,144.19,144.14,39.34387618]
[1746545820522,32.40619013,144.18,144.14,39.34387618]
[1746545820714,32.40619013,144.18,144.14,32.40619013]
[1746545820907,32.40619013,144.18,144.14,39.34377594]
[1746545821798,39.34199796,144.18,144.14,39.34377594]
[1746545822005,6.93545784,144.19,144.14,39.34377594]
[1746545822200,32.40619013,144.19,144.15,32.40619013]
[1746545822425,51.9,144.2,144.15,32.40619013]
[1746545822616,32.40619013,144.19,144.15,32.40619013]
[1746545822816,32.40619013,144.19,144.14,6.93758581]
[1746545823122,32.40619013,144.19,144.15,32.40619013]
[1746545823329,39.34162495,144.19,144.15,32.40619013]
[1746545823706,39.34162495,144.19,144.14,39.34377594]
[1746545824136,51.9,144.18,144.14,39.34377594]
[1746545824803,91.24204325,144.18,144.14,39.34377594]
[1746545825003,32.40619013,144.17,144.13,6.9379656]
[1746545825211,32.40619013,144.17,144.13,39.34415573]
[1746545825623,32.40619013,144.15,144.11,28.81397646]
[1746545826000,32.40619013,144.15,144.11,54.28109013]
[1746545826199,32.40619013,144.15,144.11,28.81389357]
[1746545826430,32.40619013,144.15,144.11,54.28109013]
[1746545826724,32.40619013,144.15,144.11,21.8749]
[1746545826927,84.30619013,144.14,144.11,6.0898]
[1746545827220,32.40619013,144.12,144.08,1.6362]
[1746545827422,32.40619013,144.11,144.07,14.22]
[1746545827637,32.40619013,144.1,144.06,45.99054014]
[1746545828502,14.26,144.11,144.06,6.643]
[1746545828503,84.30619013,144.09,144.06,6.643]
[1746545828706,84.30619013,144.09,144.05,32.40619013]
[1746545829632,84.30619013,144.08,144.03,14.22]
[1746545829834,84.30619013,144.08,144.04,32.40619013]
[1746545830037,6.93967518,144.1,144.02,6.94326683]
[1746545830038,84.30619013,144.07,144.02,6.94326683]
[1746545830241,51.9,144.07,144.03,32.40619013]
[1746545830449,84.30619013,144.07,144.03,32.40619013]
[1746545830611,51.9,144.07,144.04,39.34846623]
[1746545831226,51.9,144.07,144.06,32.40619013]
[1746545832333,51.9,144.07,144.05,32.40619013]
[1746545832640,51.9,144.07,144.04,6.9422761]
[1746545832641,51.9,144.07,144.04,39.34846623]
[1746545832810,84.30619013,144.07,144.03,39.34902304]
[1746545833011,84.30619013,144.07,144.03,6.94283291]
[1746545833217,32.40619013,144.05,144.01,6.94396222]
[1746545833413,32.40619013,144.05,144.01,39.35015235]
[1746545833619,51.9,144.04,144.0,6.94427431]
[1746545833836,51.9,144.04,144.01,32.40619013]
[1746545834040,84.30619013,144.04,144.0,39.35046444]
[1746545834425,40.3,144.06,144.0,39.35046444]
[1746545834426,51.9,144.03,144.01,32.40619013]
[1746545835045,51.9,144.03,144.01,39.35004088]
[1746545835247,51.9,144.03,144.01,6.94385075]
[1746545835439,51.9,144.03,144.01,39.35004088]
[1746545836136,84.30619013,144.02,143.98,32.40619013]
[1746545836342,51.9,144.01,143.96,27.6574]
[1746545836552,51.9,144.01,143.99,32.40619013]
[1746545836937,51.9,144.01,143.98,39.35129923]
[1746545837457,51.9,144.01,144.0,32.40619013]
[1746545838327,51.9,144.01,143.98,24.30863181]
[1746545838533,51.9,144.01,144.0,32.40619013]
[1746545839254,51.9,144.01,143.98,17.36352271]
[1746545839545,51.9,144.01,143.99,32.40619013]
[1746545839748,51.9,144.01,144.0,32.40619013]
[1746545840049,51.9,144.01,143.99,32.40619013]
[1746545840438,51.9,144.01,144.0,32.40619013]
[1746545841328,51.9,144.01,144.0,39.35063457]
[1746545841551,51.9,144.01,144.0,32.40619013]
[1746545841737,51.9,144.01,144.0,39.35063457]
[1746545842956,51.9,144.01,144.0,32.40619013]
[1746545843446,51.9,144.01,144.0,39.35063457]
[1746545843855,51.9,144.05,144.0,39.35063457]
[1746545844046,51.9,144.05,144.04,32.40619013]
[1746545845552,51.9,144.05,144.03,32.40619013]
[1746545847031,51.9,144.05,144.0,38.52555555]
[1746545847032,58.84212074,144.05,144.01,32.40619013]
[1746545847258,32.40619013,144.03,144.0,14.22]
[1746545847466,46.64619013,144.03,143.99,32.40619013]
[1746545847635,53.58919619,144.03,143.99,32.40619013]
[1746545847835,53.58919619,144.03,144.0,32.40619013]
[1746545847836,21.18300606,144.03,144.0,32.40619013]
[1746545848035,14.24,144.03,144.0,32.40619013]
[1746545848231,21.18312683,144.03,144.0,32.40619013]
[1746545848537,51.9,144.02,143.99,32.40619013]
[1746545849156,51.9,144.02,144.0,32.40619013]
[1746545849557,51.9,144.02,144.01,32.40619013]
[1746545849739,51.9,144.02,144.01,39.35015235]
[1746545851543,51.9,144.02,144.01,32.40619013]
[1746545852641,51.9,144.02,144.0,39.35040121]
[1746545852842,51.9,144.02,143.99,39.35094145]
[1746545853377,51.9,144.02,143.99,32.40619013]
[1746545853863,51.9,144.02,144.0,32.40619013]
[1746545854043,51.9,144.02,144.01,32.40619013]
[1746545854360,91.24748353,144.07,144.01,32.40619013]
[1746545854662,51.9,144.06,144.04,32.40619013]
[1746545855347,51.9,144.06,144.03,32.40619013]
[1746545855546,51.9,144.06,144.03,39.34907104]
[1746545856259,51.9,144.1,144.05,32.40619013]
[1746545856558,51.9,144.13,144.09,32.40619013]
[1746545856861,51.9,144.13,144.12,32.40619013]
[1746545857265,51.9,144.13,144.11,32.40619013]
[1746545858056,14.26,144.16,144.1,6.93942783]
[1746545858368,14.26,144.16,144.11,32.40619013]
[1746545858369,51.9,144.15,144.11,32.40619013]
[1746545858541,84.30619013,144.15,144.11,32.40619013]
[1746545859463,84.30619013,144.14,144.1,32.40619013]
[1746545859835,58.8380594,144.14,144.1,32.40619013]
[1746545860262,58.8380594,144.14,144.11,32.40619013]
[1746545860964,51.9,144.14,144.11,32.40619013]
[1746545861165,51.9,144.14,144.12,32.40619013]
[1746545861347,51.9,144.14,144.13,32.40619013]
[1746545861948,51.9,144.16,144.13,39.34437093]
[1746545862245,51.9,144.16,144.15,32.40619013]
[1746545862440,51.9,144.16,144.14,32.40619013]
[1746545862870,58.83690223,144.16,144.13,32.40619013]
[1746545863175,58.83690223,144.16,144.12,32.40619013]
[1746545863551,58.83690223,144.16,144.13,32.40619013]
[1746545863758,58.83690223,144.16,144.14,32.40619013]
[1746545863759,51.9,144.16,144.14,32.40619013]
[1746545864948,51.9,144.16,144.13,32.40619013]
[1746545865271,58.83674862,144.16,144.13,32.40619013]
[1746545865668,58.83674862,144.16,144.12,32.40619013]
[1746545865892,91.24293875,144.16,144.11,32.40619013]
[1746545866047,51.9,144.15,144.12,32.40619013]
[1746545867173,58.83725005,144.15,144.12,32.40619013]
[1746545867473,51.9,144.15,144.12,32.40619013]
[1746545868070,51.9,144.15,144.12,39.34482273]
[1746545868279,51.9,144.15,144.13,32.40619013]
[1746545869170,58.83726906,144.15,144.12,32.40619013]
[1746545869351,51.9,144.15,144.12,32.40619013]
[1746545869857,58.83722788,144.15,144.1,6.93945653]
[1746545870169,91.24341801,144.15,144.11,32.40619013]
[1746545870666,91.24341801,144.15,144.1,6.93945653]
[1746545870861,91.24341801,144.15,144.11,32.40619013]
[1746545871042,84.30619013,144.14,144.08,15.7114]
[1746545871247,32.40619013,144.13,144.08,32.40619013]
[1746545871657,51.9,144.14,144.1,32.40619013]
[1746545872495,51.9,144.14,144.11,32.40619013]
[1746545872685,51.9,144.14,144.13,32.40619013]
[1746545872863,51.9,144.14,144.12,39.34456089]
[1746545873061,51.9,144.14,144.13,32.40619013]
[1746545875097,84.30619013,144.14,144.11,6.9391437]
[1746545875271,51.9,144.14,144.11,32.40619013]
[1746545875901,51.9,144.14,144.12,32.40619013]
[1746545876075,51.9,144.14,144.11,32.40619013]
[1746545876281,84.30619013,144.14,144.1,39.34560908]
[1746545876598,51.9,144.14,144.1,39.34560908]
[1746545877395,58.83774462,144.14,144.09,6.94010687]
[1746545877580,91.24393475,144.14,144.09,39.346297]
[1746545877988,32.40619013,144.13,144.09,32.40619013]
[1746545878577,84.30619013,144.14,144.1,32.40619013]
[1746545878889,84.30619013,144.14,144.11,32.40619013]
[1746545878890,51.9,144.14,144.11,32.40619013]
[1746545879081,32.40619013,144.16,144.12,32.40619013]
[1746545879483,73.0164781,144.17,144.12,39.34461477]
[1746545879671,84.30619013,144.16,144.12,39.34461477]
[1746545880800,91.24298679,144.16,144.12,39.34461477]
[1746545881299,91.24298679,144.16,144.12,32.40619013]
[1746545881986,32.40619013,144.15,144.11,32.40619013]
[1746545883597,39.34343373,144.15,144.11,39.34527214]
[1746545883783,58.83693276,144.16,144.11,39.34527214]
[1746545883978,51.9,144.16,144.14,32.40619013]
[1746545884194,51.9,144.16,144.13,32.40619013]
[1746545884391,58.83674736,144.16,144.11,6.93908201]
[1746545884584,91.24293749,144.16,144.11,6.93908201]
[1746545884900,91.24293749,144.16,144.12,32.40619013]
[1746545885193,84.30619013,144.16,144.12,32.40619013]
[1746545885400,51.9,144.16,144.13,32.40619013]
[1746545886599,51.9,144.16,144.12,39.34451521]
[1746545886783,84.30619013,144.16,144.12,39.34451521]
[1746545888097,51.9,144.16,144.13,32.40619013]
[1746545888995,58.8368376,144.16,144.11,6.9391437]
[1746545889204,58.8368376,144.16,144.12,32.40619013]
[1746545889381,91.24302773,144.16,144.12,32.40619013]
[1746545889581,58.8368376,144.16,144.13,32.40619013]
[1746545889988,51.9,144.15,144.12,32.40619013]
[1746545891404,58.83726589,144.15,144.11,39.34533383]
[1746545891700,58.83726589,144.15,144.11,6.9391437]
[1746545891905,58.83726589,144.15,144.12,32.40619013]
[1746545891906,51.9,144.15,144.12,32.40619013]
[1746545892706,51.9,144.15,144.12,39.34466293]
[1746545893702,51.9,144.15,144.12,6.9384728]
[1746545893909,51.9,144.15,144.12,27.20496307]
[1746545895498,51.9,144.15,144.13,20.26649027]
[1746545895886,51.9,144.15,144.12,27.20496307]
[1746545896784,51.9,144.15,144.1,25.58927412]
[1746545897100,58.83724645,144.15,144.12,20.26649027]
[1746545897300,51.9,144.15,144.12,20.26649027]
[1746545897903,51.9,144.15,144.13,20.26649027]
[1746545898416,51.9,144.15,144.12,20.26649027]
[1746545898578,51.9,144.15,144.13,20.26649027]
[1746545898983,51.9,144.15,144.12,27.20477]
[1746545899279,51.9,144.15,144.11,27.20546134]
[1746545899492,51.9,144.15,144.12,20.26649027]
[1746545900407,51.9,144.15,144.13,20.26649027]
[1746545901108,51.9,144.15,144.13,27.20438072]
[1746545902000,51.9,144.18,144.14,20.26649027]
[1746545902305,51.9,144.18,144.15,20.26649027]
[1746545903303,51.9,144.18,144.16,27.20322722]
[1746545904211,51.9,144.18,144.17,20.26649027]
[1746545904414,51.9,144.18,144.16,27.20322722]
[1746545905386,51.9,144.2,144.17,20.26649027]
[1746545907106,58.83485804,144.2,144.17,20.26649027]
[1746545907315,27.20184817,144.19,144.15,20.26649027]
[1746545908196,27.20184817,144.19,144.14,6.93748771]
[1746545908606,27.20184817,144.19,144.14,27.20397798]
[1746545908805,27.20184817,144.19,144.15,20.26649027]
[1746545909414,6.9353579,144.19,144.14,6.93748771]
[1746545909728,27.20184817,144.19,144.15,20.26649027]
[1746545910501,6.9353579,144.19,144.15,20.26649027]
[1746545910806,27.20184817,144.19,144.15,20.26649027]
[1746545911011,51.9,144.18,144.15,20.26649027]
[1746545911200,51.9,144.18,144.15,27.20370145]
[1746545911522,51.9,144.18,144.15,20.26649027]
[1746545911696,20.26649027,144.16,144.12,3.42288966]
[1746545912016,51.9,144.15,144.12,3.42288966]
[1746545912226,51.9,144.15,144.12,20.26649027]
[1746545912396,51.9,144.15,144.13,20.26649027]
[1746545913212,51.9,144.15,144.12,20.26649027]
[1746545913432,79.10378931,144.15,144.1,27.2059412]
[1746545914217,20.26649027,144.13,144.08,34.1124]
[1746545914398,58.83729904,144.15,144.1,20.26649027]
[1746545914593,20.26649027,144.14,144.08,41.05276447]
[1746545914797,79.10378931,144.15,144.1,20.26649027]
[1746545915704,20.26649027,144.14,144.1,20.26649027]
[1746545916207,79.10378931,144.15,144.1,27.20609312]
[1746545916615,72.16649027,144.15,144.1,27.20609312]
[1746545917119,79.10377132,144.15,144.1,27.20609312]
[1746545917500,79.10377132,144.15,144.12,20.26649027]
[1746545917501,51.9,144.15,144.12,20.26649027]
[1746545917906,51.9,144.15,144.11,20.26649027]
[1746545919020,51.9,144.15,144.12,20.26649027]
[1746545919402,51.9,144.15,144.12,27.2047354]
[1746545921215,51.9,144.15,144.14,20.26649027]
[1746545921712,51.9,144.15,144.14,27.20418972]
[1746545922922,51.9,144.15,144.1,14.12]
[1746545923135,20.26649027,144.14,144.1,14.12]
[1746545923317,20.26649027,144.14,144.1,34.38649027]
[1746545923515,27.20431627,144.14,144.1,21.05956551]
[1746545923741,27.20431627,144.14,144.08,34.1124]
[1746545923936,51.9,144.13,144.1,20.26649027]
[1746545924113,51.9,144.13,144.11,20.26649027]
[1746545924432,51.9,144.13,144.1,20.26649027]
[1746545925519,51.9,144.13,144.09,6.9399312]
[1746545925828,51.9,144.13,144.1,20.26649027]
[1746545926433,51.9,144.12,144.08,41.05280577]
[1746545926638,51.9,144.12,144.09,20.26649027]
[1746545926808,51.9,144.12,144.08,8.1124]
[1746545927117,72.16649027,144.12,144.08,20.26649027]
[1746545927319,51.9,144.12,144.08,20.26649027]
[1746545927533,51.9,144.12,144.09,20.26649027]
[1746545928831,51.9,144.12,144.07,6.9409485]
[1746545928832,79.10526292,144.12,144.07,6.9409485]
[1746545929146,79.10526292,144.12,144.08,20.26649027]
[1746545929312,20.26649027,144.11,144.06,21.06137697]
[1746545929636,20.26649027,144.1,144.06,41.32786724]
[1746545929836,51.9,144.09,144.05,27.20835412]
[1746545930021,51.9,144.09,144.06,20.26649027]
[1746545930502,51.9,144.09,144.08,20.26649027]
[1746545930705,14.12,144.14,144.08,20.26649027]
[1746545930706,51.9,144.12,144.08,20.26649027]
[1746545930926,51.9,144.12,144.1,20.26649027]
[1746545931234,51.9,144.12,144.09,20.26649027]
[1746545931751,51.9,144.12,144.09,27.2063412]
[1746545934319,51.9,144.12,144.09,6.93985093]
[1746545934617,51.9,144.12,144.1,20.26649027]
[1746545934846,51.9,144.12,144.09,27.2063412]
[1746545935022,93.22422685,144.14,144.09,27.2063412]
[1746545935227,20.26649027,144.13,144.09,27.2063412]
[1746545935623,20.26649027,144.13,144.09,6.93985093]
[1746545935829,20.26649027,144.13,144.09,27.2063412]
[1746545936347,27.20480691,144.13,144.09,20.26649027]
[1746545936946,20.26649027,144.12,144.08,27.20684721]
[1746545937317,20.26649027,144.12,144.07,20.26649027]
[1746545937514,20.26649027,144.11,144.07,20.26649027]
[1746545937938,72.16649027,144.12,144.07,20.26649027]
[1746545938233,79.10551501,144.12,144.07,27.20743229]
[1746545938435,51.9,144.12,144.08,20.26649027]
[1746545939546,51.9,144.12,144.09,20.26649027]
[1746545940041,51.9,144.12,144.1,20.26649027]
[1746545940226,65.98,144.14,144.1,20.26649027]
[1746545940617,77.9,144.16,144.12,20.26649027]
[1746545940926,20.26649027,144.15,144.1,20.26649027]
[1746545943458,27.2041544,144.15,144.1,27.20604655]
[1746545944131,20.26649027,144.14,144.1,27.20604655]
[1746545944541,6.93766413,144.15,144.08,6.94058856]
[1746545944542,20.26649027,144.13,144.08,6.94058856]
[1746545944742,72.16649027,144.13,144.09,20.26649027]
[1746545945418,51.9,144.13,144.1,20.26649027]
[1746545946250,51.9,144.13,144.06,51.74035572]
[1746545946251,51.9,144.13,144.09,27.20655926]
[1746545946943,51.9,144.13,144.1,20.26649027]
[1746545947829,58.83819187,144.13,144.1,20.26649027]
[1746545949153,58.83819187,144.13,144.09,20.26649027]
[1746545949357,51.9,144.13,144.09,20.26649027]
[1746545949757,20.26649027,144.12,144.08,20.26649027]
[1746545950127,20.26649027,144.11,144.07,6.94107031]
[1746545950426,20.26649027,144.11,144.06,41.32786682]